fUSD/lending_fUSD_20241227
["ID","MTS","AMOUNT","RATE_DAILY","PERIOD"]
[346780656,1735283443838,-500.0,0.00012766,2]
[346780657,1735283443848,-500.0,0.00012766,2]
[346780658,1735283443858,-151.0,0.00012766,2]
[346780659,1735283443868,-153.621546,0.00012766,2]
[346780660,1735283443878,-158.668765,0.00012766,2]
[346780661,1735283443888,-158.668765,0.00012766,2]
[346780662,1735283443898,-500.0,0.00012766,2]
[346780663,1735283443907,-9423.63732139,0.00012767,2]
[346780664,1735283443916,-9206.013,0.00012767,2]
[346780665,1735283443925,-3093.507,0.00012767,2]
[346780666,1735283443935,-157.106,0.00012767,2]
[346780667,1735283443943,-2050.97224,0.00012767,2]
[346780668,1735283443953,-501.69546733,0.00012773,2]
[346780669,1735283443962,-500.0,0.00012773,2]
[346780670,1735283443972,-151.0,0.00012773,2]
[346780671,1735283443981,-151.0,0.00012773,2]
[346780672,1735283443990,-150.063,0.00012779,2]
[346780673,1735283444000,-169.81221272,0.0001278,2]
[346780674,1735283444009,-500.0,0.00012785,2]
[346780675,1735283444019,-1000.0,0.00012785,2]
[346780676,1735283444028,-3859.51057548,0.00012787,2]
[346780677,1735283444038,-500.0,0.00012799,2]
[346780678,1735283444047,-500.0,0.00012799,2]
[346780679,1735283444056,-500.0,0.000128,2]
[346780680,1735283444065,-500.61,0.000128,2]
[346780681,1735283444074,-3858.26113913,0.000128,2]
[346780682,1735283444084,-151.0,0.000128,2]
[346780683,1735283444093,-151.0,0.000128,2]
[346780684,1735283444103,-151.0,0.000128,2]
[346780685,1735283444112,-151.0,0.000128,2]
[346780686,1735283444122,-151.0,0.000128,2]
[346780687,1735283444131,-151.0,0.000128,2]
[346780688,1735283444140,-151.214484,0.000128,2]
[346780689,1735283444150,-151.0,0.000128,2]
[346780690,1735283444159,-151.0,0.000128,2]
[346780691,1735283444169,-151.0,0.000128,2]
[346780692,1735283444177,-151.0,0.000128,2]
[346780693,1735283444187,-151.0,0.000128,2]
[346780694,1735283444196,-158.668765,0.000128,2]
[346780695,1735283444206,-158.668765,0.000128,2]
[346780696,1735283444215,-169.81221272,0.0001282,2]
[346780697,1735283444225,-3859.51057548,0.00012825,2]
[346780698,1735283444235,-151.0,0.00012825,2]
[346780699,1735283444244,-151.0,0.00012825,2]
[346780700,1735283444254,-151.0,0.00012825,2]
[346780701,1735283444263,-186.32293362,0.00012838,2]
[346780702,1735283444273,-169.81221272,0.0001286,2]
[346780703,1735283444282,-3859.51057548,0.00012862,2]
[346780704,1735283444292,-199.659478,0.00012882,2]
[346780705,1735283444302,-239.378108,0.00012886,2]
[346780706,1735283444312,-167.43,0.00012887,2]
[346780707,1735283444321,-250.84681252,0.00012897,2]
[346780708,1735283444331,-150.0,0.000129,3]
[346780709,1735283444342,-169.81221272,0.000129,2]
[346780710,1735283444352,-388.2125,0.000129,2]
[346780711,1735283444361,-3859.51057548,0.000129,2]
[346780712,1735283444371,-250.84681252,0.00012904,2]
[346780713,1735283444381,-250.84681252,0.00012911,2]
[346780714,1735283444390,-250.84681252,0.00012919,2]
[346780715,1735283444400,-250.84681252,0.00012926,2]
[346780716,1735283444410,-250.84681252,0.00012933,2]
[346780717,1735283444419,-3624.82830859,0.00012935,2]
[346780718,1735283444429,-268147.42009933,0.00012935,2]
[346780719,1735283444444,-94912.69559687,0.00012935,2]
[346780720,1735283444454,-2540.26,0.00012936,2]
[346780721,1735283444464,-500.0,0.00012936,2]
[346780722,1735283444473,-1122.37,0.00012936,2]
[346780723,1735283444483,-4996.51,0.00012936,2]
[346780724,1735283444492,-7574.75,0.00012936,2]
[346780725,1735283444501,-603.96,0.00012936,2]
[346780726,1735283444511,-1985.57,0.00012936,2]
[346780727,1735283444520,-3151.91,0.00012936,2]
[346780728,1735283444530,-151.0,0.00012936,2]
[346780729,1735283444539,-4328.86,0.00012936,2]
[346780730,1735283444551,-6858.16,0.00012936,2]
[346780731,1735283444561,-151.0,0.00012936,2]
[346780732,1735283444570,-3198.61,0.00012936,2]
[346780733,1735283444582,-190.953354,0.00012936,2]
[346780734,1735283444591,-190.953354,0.00012936,2]
[346780735,1735283444601,-2492.12,0.00012936,2]
[346780736,1735283444611,-1112.89,0.00012936,2]
[346780737,1735283444621,-6536.31969513,0.00012936,2]
[346780738,1735283444633,-168.70030487,0.00012936,2]
[346780739,1735283444642,-3012.56,0.00012936,2]
[346780740,1735283444652,-7698.71,0.00012936,2]
[346780741,1735283444661,-3122.15,0.00012936,2]
[346780742,1735283444671,-1550.17,0.00012936,2]
[346780743,1735283444682,-6781.96,0.00012936,2]
[346780744,1735283444693,-15705.12,0.00012936,2]
[346780745,1735283444703,-4678.29,0.00012936,2]
[346780746,1735283444713,-500.0,0.00012936,2]
[346780747,1735283444723,-5555.85,0.00012936,2]
[346780748,1735283444733,-2334.06,0.00012936,2]
[346780749,1735283444746,-10721.8,0.00012936,2]
[346780750,1735283444755,-12251.89,0.00012936,2]
[346780751,1735283444765,-822.85,0.00012936,2]
[346780752,1735283444775,-3541.37,0.00012936,2]
[346780753,1735283444785,-2537.59,0.00012936,2]
[346780754,1735283444796,-9344.44,0.00012936,2]
[346780755,1735283444808,-500.0,0.00012936,2]
[346780756,1735283444820,-3115.53073482,0.00012936,2]
[346780757,1735283444839,-947.72946,0.00012936,2]
[346780758,1735283444851,-881.94980518,0.00012936,2]
[346780759,1735283444861,-622.92384056,0.00012936,2]
[346780760,1735283444872,-281.11615944,0.00012936,2]
[346780761,1735283444882,-1851.4,0.00012936,2]
[346780762,1735283444891,-981.4,0.00012936,2]
[346780763,1735283444900,-500.0,0.00012936,2]
[346780764,1735283444910,-850.19,0.00012936,2]
[346780765,1735283444921,-3608.48,0.00012936,2]
[346780766,1735283444930,-500.0,0.00012937,2]
[346780767,1735283444940,-500.0,0.00012937,2]
[346780768,1735283444949,-500.0,0.00012937,2]
[346780769,1735283444958,-38.76344104,0.00012937,2]
[346780770,1735283444970,-251.013,0.00012937,2]
[346780771,1735283445595,-500.0,0.00012663,2]
[346780772,1735283445604,-500.0,0.00012663,2]
[346780773,1735283445615,-210.22355896,0.00012937,2]
[346780774,1735283445624,-650.43,0.00012937,2]
[346780775,1735283445634,-702.78,0.00012937,2]
[346780776,1735283445644,-772.11,0.00012937,2]
[346780777,1735283445653,-1106.53,0.00012937,2]
[346780778,1735283445663,-559.31795518,0.00012937,2]
[346780779,1735283445673,-500.0,0.00012937,2]
[346780780,1735283445683,-500.0,0.00012937,2]
[346780781,1735283445692,-518.79,0.00012937,2]
[346780782,1735283445701,-500.0,0.00012937,2]
[346780783,1735283445710,-750.58,0.00012937,2]
[346780784,1735283445720,-500.0,0.00012937,2]
[346780785,1735283445729,-500.0,0.00012937,2]
[346780786,1735283445742,-500.0,0.00012937,2]
[346780787,1735283445815,-601.91,0.00012937,2]
[346780788,1735283445824,-500.0,0.00012937,2]
[346780789,1735283445833,-857.07,0.00012937,2]
[346780790,1735283445842,-500.0,0.00012937,2]
[346780791,1735283445851,-500.0,0.00012937,2]
[346780792,1735283445860,-530.51,0.00012937,2]
[346780793,1735283445869,-500.0,0.00012937,2]
[346780794,1735283445878,-500.0,0.00012937,2]
[346780795,1735283445887,-448.42451737,0.00012937,2]
[346780796,1735283445900,-1124.63548263,0.00012937,2]
[346780797,1735283445909,-500.0,0.00012937,2]
[346780798,1735283445918,-500.0,0.00012937,2]
[346780799,1735283445928,-500.0,0.00012937,2]
[346780800,1735283445937,-562.03,0.00012937,2]
[346780801,1735283445946,-703.47,0.00012937,2]
[346780802,1735283445955,-500.0,0.00012937,2]
[346780803,1735283445964,-885.11,0.00012937,2]
[346780804,1735283445974,-1271.24,0.00012937,2]
[346780805,1735283445983,-888.17,0.00012937,2]
[346780806,1735283445992,-500.0,0.00012937,2]
[346780807,1735283446001,-719.65,0.00012937,2]
[346780808,1735283446010,-1807.49,0.00012937,2]
[346780809,1735283446020,-2547.18,0.00012937,2]
[346780810,1735283446029,-500.0,0.00012937,2]
[346780811,1735283446038,-500.0,0.00012937,2]
[346780812,1735283446049,-1010.54,0.00012937,2]
[346780813,1735283446059,-500.0,0.00012937,2]
[346780814,1735283446067,-1856.13,0.00012937,2]
[346780815,1735283446077,-500.0,0.00012937,2]
[346780816,1735283446086,-500.0,0.00012937,2]
[346780817,1735283446095,-1751.08,0.00012937,2]
[346780818,1735283446104,-500.0,0.00012937,2]
[346780819,1735283446115,-500.0,0.00012937,2]
[346780820,1735283446124,-520.28,0.00012937,2]
[346780821,1735283446133,-500.0,0.00012937,2]
[346780822,1735283446143,-528.62,0.00012937,2]
[346780823,1735283446152,-1199.71,0.00012937,2]
[346780824,1735283446161,-667.38,0.00012937,2]
[346780825,1735283446171,-500.0,0.00012937,2]
[346780826,1735283446180,-500.0,0.00012937,2]
[346780827,1735283446189,-857.28451526,0.00012937,2]
[346780828,1735283446201,-33.45548474,0.00012937,2]
[346780829,1735283446210,-609.77830311,0.00012937,2]
[346780830,1735283446219,-500.0,0.00012937,2]
[346780831,1735283446228,-158.95026225,0.00012937,2]
[346780832,1735283446239,-341.04973775,0.00012937,2]
[346780833,1735283446248,-500.0,0.00012937,2]
[346780834,1735283446257,-500.0,0.00012937,2]
[346780835,1735283446266,-829.06,0.00012937,2]
[346780836,1735283446275,-500.0,0.00012937,2]
[346780837,1735283446284,-500.0,0.00012937,2]
[346780838,1735283446294,-500.0,0.00012937,2]
[346780839,1735283446304,-539.86,0.00012937,2]
[346780840,1735283446314,-500.0,0.00012937,2]
[346780841,1735283446323,-1034.44,0.00012937,2]
[346780842,1735283446333,-500.0,0.00012937,2]
[346780843,1735283446342,-1431.42,0.00012937,2]
[346780844,1735283446351,-500.0,0.00012937,2]
[346780845,1735283446360,-500.0,0.00012937,2]
[346780846,1735283446369,-500.0,0.00012937,2]
[346780847,1735283446379,-500.0,0.00012937,2]
[346780848,1735283446389,-500.0,0.00012937,2]
[346780849,1735283446406,-500.0,0.00012937,2]
[346780850,1735283446415,-500.0,0.00012937,2]
[346780851,1735283446425,-500.0,0.00012937,2]
[346780852,1735283446434,-1242.12,0.00012937,2]
[346780853,1735283446444,-1031.98,0.00012937,2]
[346780854,1735283446453,-500.0,0.00012937,2]
[346780855,1735283446462,-500.0,0.00012937,2]
[346780856,1735283446471,-500.0,0.00012937,2]
[346780857,1735283446481,-500.0,0.00012937,2]
[346780858,1735283446491,-751.97,0.00012937,2]
[346780859,1735283446500,-1886.52,0.00012937,2]
[346780860,1735283446510,-500.0,0.00012937,2]
[346780861,1735283446519,-500.0,0.00012937,2]
[346780862,1735283446529,-571.28,0.00012937,2]
[346780863,1735283446538,-500.0,0.00012937,2]
[346780864,1735283446549,-2171.31,0.00012937,2]
[346780865,1735283446559,-151.0,0.00012937,2]
[346780866,1735283446568,-500.0,0.00012937,2]
[346780867,1735283446577,-500.0,0.00012937,2]
[346780868,1735283446586,-500.0,0.00012937,2]
[346780869,1735283446595,-500.0,0.00012937,2]
[346780870,1735283446604,-500.0,0.00012937,2]
[346780871,1735283446614,-905.84,0.00012937,2]
[346780872,1735283446623,-500.0,0.00012937,2]
[346780873,1735283446632,-2100.55,0.00012937,2]
[346780874,1735283446642,-826.38,0.00012937,2]
[346780875,1735283446651,-500.0,0.00012937,2]
[346780876,1735283446660,-836.26,0.00012937,2]
[346780877,1735283446669,-638.25,0.00012937,2]
[346780878,1735283446678,-500.0,0.00012937,2]
[346780879,1735283446688,-500.0,0.00012937,2]
[346780880,1735283446697,-500.0,0.00012937,2]
[346780881,1735283446706,-500.0,0.00012937,2]
[346780882,1735283446715,-151.0,0.00012937,2]
[346780883,1735283446724,-151.0,0.00012937,2]
[346780884,1735283446734,-500.0,0.00012937,2]
[346780885,1735283446746,-500.0,0.00012937,2]
[346780886,1735283446755,-500.0,0.00012937,2]
[346780887,1735283446764,-500.0,0.00012937,2]
[346780888,1735283446773,-500.0,0.00012937,2]
[346780889,1735283446783,-158.668765,0.00012937,2]
[346780890,1735283446792,-500.0,0.00012937,2]
[346780891,1735283446802,-500.0,0.00012937,2]
[346780892,1735283446812,-158.668765,0.00012937,2]
[346780893,1735283446821,-647.96,0.00012937,2]
[346780894,1735283446830,-544.83,0.00012937,2]
[346780895,1735283446840,-500.0,0.00012937,2]
[346780896,1735283446848,-500.0,0.00012937,2]
[346780897,1735283446857,-1112.61,0.00012937,2]
[346780898,1735283446867,-500.0,0.00012937,2]
[346780899,1735283446876,-500.0,0.00012937,2]
[346780900,1735283446885,-500.0,0.00012937,2]
[346780901,1735283446894,-263.471855,0.00012937,2]
[346780902,1735283446904,-500.0,0.00012937,2]
[346780903,1735283446913,-500.0,0.00012937,2]
[346780904,1735283446922,-500.0,0.00012937,2]
[346780905,1735283446931,-352.88028399,0.00012937,2]
[346780906,1735283446940,-500.0,0.00012937,2]
[346780907,1735283446949,-500.0,0.00012937,2]
[346780908,1735283446958,-500.0,0.00012937,2]
[346780909,1735283446970,-1331.23,0.00012937,2]
[346780910,1735283446980,-535.68,0.00012937,2]
[346780911,1735283446989,-500.0,0.00012937,2]
[346780912,1735283446998,-2364.239196,0.00012937,2]
[346780913,1735283447007,-500.0,0.00012937,2]
[346780914,1735283447016,-500.0,0.00012937,2]
[346780915,1735283447025,-500.0,0.00012937,2]
[346780916,1735283447034,-2335.552905,0.00012937,2]
[346780917,1735283447043,-500.0,0.00012937,2]
[346780918,1735283447053,-952.43,0.00012937,2]
[346780919,1735283447062,-505.69407078,0.00012937,2]
[346780920,1735283447071,-500.0,0.00012937,2]
[346780921,1735283447080,-1020.7,0.00012937,2]
[346780922,1735283447089,-1081.86,0.00012937,2]
[346780923,1735283447098,-503.27164339,0.00012937,2]
[346780924,1735283447107,-500.0,0.00012937,2]
[346780925,1735283447117,-500.0,0.00012937,2]
[346780926,1735283447126,-2716.59,0.00012937,2]
[346780927,1735283447136,-2485.0,0.00012937,2]
[346780928,1735283447146,-500.0,0.00012937,2]
[346780929,1735283447155,-500.0,0.00012937,2]
[346780930,1735283447164,-500.0,0.00012937,2]
[346780931,1735283447174,-370.85523401,0.00012937,2]
[346780932,1735283447191,-17.35726599,0.00012937,2]
[346780933,1735283447201,-388.2125,0.00012937,2]
[346780934,1735283447210,-500.0,0.00012937,2]
[346780935,1735283447219,-500.0,0.00012937,2]
[346780936,1735283447229,-243.23023401,0.00012937,2]
[346780937,1735283447240,-628.211996,0.00012937,2]
[346780938,1735283447251,-3.13776999,0.00012937,2]
[346780939,1735283447260,-521.18,0.00012937,2]
[346780940,1735283447270,-881.53,0.00012937,2]
[346780941,1735283447279,-500.0,0.00012937,2]
[346780942,1735283447288,-500.0,0.00012937,2]
[346780943,1735283447298,-455.86083076,0.00012937,2]
[346780944,1735283447312,-482.38,0.00012937,2]
[346780945,1735283447330,-500.0,0.00012663,2]
[346780946,1735283447339,-10.16916924,0.00012937,2]
[346780947,1735283447349,-2487.99,0.00012937,2]
[346780948,1735283447358,-500.0,0.00012937,2]
[346780949,1735283447367,-500.0,0.00012937,2]
[346780950,1735283447377,-500.0,0.00012937,2]
[346780951,1735283447387,-675.69,0.00012937,2]
[346780952,1735283447396,-834.11,0.00012937,2]
[346780953,1735283447405,-500.0,0.00012937,2]
[346780954,1735283447415,-500.0,0.00012937,2]
[346780955,1735283447424,-500.0,0.00012937,2]
[346780956,1735283447433,-500.0,0.00012937,2]
[346780957,1735283447444,-500.0,0.00012937,2]
[346780958,1735283447453,-500.0,0.00012937,2]
[346780959,1735283447463,-2259.08,0.00012937,2]
[346780960,1735283447474,-500.0,0.00012937,2]
[346780961,1735283447483,-500.0,0.00012937,2]
[346780962,1735283447493,-500.0,0.00012937,2]
[346780963,1735283447502,-981.89,0.00012937,2]
[346780964,1735283447511,-466.37141203,0.00012937,2]
[346780965,1735283447521,-2916.78,0.00012937,2]
[346780966,1735283447530,-945.43,0.00012937,2]
[346780967,1735283447539,-616.86,0.00012937,2]
[346780968,1735283447550,-2814.0,0.00012937,2]
[346780969,1735283447559,-572.71,0.00012937,2]
[346780970,1735283447568,-500.0,0.00012937,2]
[346780971,1735283447578,-500.0,0.00012937,2]
[346780972,1735283447587,-1286.06,0.00012937,2]
[346780973,1735283447596,-500.0,0.00012937,2]
[346780974,1735283447605,-500.0,0.00012937,2]
[346780975,1735283447615,-500.0,0.00012937,2]
[346780976,1735283447624,-500.0,0.00012937,2]
[346780977,1735283447632,-500.0,0.00012937,2]
[346780978,1735283447642,-500.0,0.00012937,2]
[346780979,1735283447651,-500.0,0.00012937,2]
[346780980,1735283447660,-500.0,0.00012937,2]
[346780981,1735283447670,-500.0,0.00012937,2]
[346780982,1735283447679,-1803.57,0.00012937,2]
[346780983,1735283447688,-500.0,0.00012937,2]
[346780984,1735283447697,-1903.26,0.00012937,2]
[346780985,1735283447707,-1295.31,0.00012937,2]
[346780986,1735283447716,-500.0,0.00012937,2]
[346780987,1735283447725,-500.0,0.00012937,2]
[346780988,1735283447736,-500.0,0.00012937,2]
[346780989,1735283447751,-601.38,0.00012937,2]
[346780990,1735283447760,-500.0,0.00012937,2]
[346780991,1735283447769,-743.93,0.00012937,2]
[346780992,1735283447779,-500.0,0.00012937,2]
[346780993,1735283447789,-1151.05,0.00012937,2]
[346780994,1735283447798,-500.0,0.00012937,2]
[346780995,1735283447807,-500.0,0.00012937,2]
[346780996,1735283447816,-1118.33,0.00012937,2]
[346780997,1735283447827,-500.0,0.00012937,2]
[346780998,1735283447835,-151.0,0.00012937,2]
[346780999,1735283447845,-151.0,0.00012937,2]
[346781000,1735283447854,-500.0,0.00012937,2]
[346781001,1735283447863,-500.0,0.00012937,2]
[346781002,1735283447872,-151.0,0.00012937,2]
[346781003,1735283447882,-500.0,0.00012937,2]
[346781004,1735283447891,-151.0,0.00012937,2]
[346781005,1735283447900,-500.0,0.00012937,2]
[346781006,1735283447910,-500.0,0.00012937,2]
[346781007,1735283447919,-500.0,0.00012937,2]
[346781008,1735283447928,-535.18895953,0.00012937,2]
[346781009,1735283447937,-3614.2,0.00012937,2]
[346781010,1735283447946,-880.66,0.00012937,2]
[346781011,1735283447955,-2845.34,0.00012937,2]
[346781012,1735283447965,-1077.09,0.00012937,2]
[346781013,1735283447974,-500.0,0.00012937,2]
[346781014,1735283447983,-151.0,0.00012937,2]
[346781015,1735283447992,-500.0,0.00012937,2]
[346781016,1735283448001,-500.0,0.00012937,2]
[346781017,1735283448011,-500.0,0.00012937,2]
[346781018,1735283448020,-504.0422931,0.00012937,2]
[346781019,1735283448029,-577.14,0.00012937,2]
[346781020,1735283448039,-1058.14,0.00012937,2]
[346781021,1735283448048,-577.72189459,0.00012937,2]
[346781022,1735283448059,-500.0,0.00012937,2]
[346781023,1735283448068,-742.76,0.00012937,2]
[346781024,1735283448078,-500.0,0.00012937,2]
[346781025,1735283448087,-500.0,0.00012937,2]
[346781026,1735283448097,-1194.72,0.00012937,2]
[346781027,1735283448106,-1696.26,0.00012937,2]
[346781028,1735283448115,-500.0,0.00012937,2]
[346781029,1735283448124,-500.0,0.00012937,2]
[346781030,1735283448134,-510.8,0.00012937,2]
[346781031,1735283448144,-1225.25,0.00012937,2]
[346781032,1735283448153,-1001.93,0.00012937,2]
[346781033,1735283448163,-500.0,0.00012937,2]
[346781034,1735283448172,-914.4,0.00012937,2]
[346781035,1735283448182,-500.0,0.00012937,2]
[346781036,1735283448191,-500.0,0.00012937,2]
[346781037,1735283448201,-500.0,0.00012937,2]
[346781038,1735283448211,-502.52913293,0.00012937,2]
[346781039,1735283448220,-500.0,0.00012937,2]
[346781040,1735283448230,-500.0,0.00012937,2]
[346781041,1735283448239,-18304.74,0.00012937,2]
[346781042,1735283448248,-500.0,0.00012937,2]
[346781043,1735283448257,-711.04,0.00012937,2]
[346781044,1735283448267,-877.3,0.00012937,2]
[346781045,1735283448276,-500.0,0.00012937,2]
[346781046,1735283448286,-500.0,0.00012937,2]
[346781047,1735283448295,-2312.95,0.00012937,2]
[346781048,1735283448305,-500.0,0.00012937,2]
[346781049,1735283448314,-500.0,0.00012937,2]
[346781050,1735283448324,-551.8,0.00012937,2]
[346781051,1735283448334,-2221.9,0.00012937,2]
[346781052,1735283448344,-500.0,0.00012937,2]
[346781053,1735283448353,-500.0,0.00012937,2]
[346781054,1735283448362,-563.25,0.00012937,2]
[346781055,1735283448371,-500.0,0.00012937,2]
[346781056,1735283448381,-1373.91,0.00012937,2]
[346781057,1735283448391,-378.77533098,0.00012937,2]
[346781058,1735283448400,-601.28,0.00012937,2]
[346781059,1735283448410,-3572.28,0.00012937,2]
[346781060,1735283448420,-500.0,0.00012937,2]
[346781061,1735283448430,-500.0,0.00012937,2]
[346781062,1735283448440,-500.0,0.00012937,2]
[346781063,1735283448451,-538.8,0.00012937,2]
[346781064,1735283448461,-500.0,0.00012937,2]
[346781065,1735283448471,-500.0,0.00012937,2]
[346781066,1735283448481,-500.0,0.00012937,2]
[346781067,1735283448491,-500.0,0.00012937,2]
[346781068,1735283448501,-190.953354,0.00012937,2]
[346781069,1735283448511,-190.953354,0.00012937,2]
[346781070,1735283448521,-2254.57,0.00012937,2]
[346781071,1735283448531,-190.953354,0.00012937,2]
[346781072,1735283448541,-2031.1,0.00012937,2]
[346781073,1735283448551,-190.953354,0.00012937,2]
[346781074,1735283448561,-500.0,0.00012937,2]
[346781075,1735283448571,-500.0,0.00012937,2]
[346781076,1735283448581,-500.0,0.00012937,2]
[346781077,1735283448592,-624.41,0.00012937,2]
[346781078,1735283448601,-1691.28,0.00012937,2]
[346781079,1735283448611,-500.0,0.00012937,2]
[346781080,1735283448620,-560.11,0.00012937,2]
[346781081,1735283448630,-500.0,0.00012937,2]
[346781082,1735283448639,-2232.55,0.00012937,2]
[346781083,1735283448649,-500.0,0.00012937,2]
[346781084,1735283448658,-500.0,0.00012937,2]
[346781085,1735283448668,-500.0,0.00012937,2]
[346781086,1735283448677,-500.0,0.00012937,2]
[346781087,1735283448686,-500.0,0.00012937,2]
[346781088,1735283448696,-500.0,0.00012937,2]
[346781089,1735283448705,-500.0,0.00012937,2]
[346781090,1735283448714,-500.0,0.00012937,2]
[346781091,1735283448724,-500.0,0.00012937,2]
[346781092,1735283448734,-973.66,0.00012937,2]
[346781093,1735283448746,-1304.76,0.00012937,2]
[346781094,1735283448755,-500.0,0.00012937,2]
[346781095,1735283448765,-609.76,0.00012937,2]
[346781096,1735283448774,-500.0,0.00012937,2]
[346781097,1735283448786,-802.0,0.00012937,2]
[346781098,1735283448795,-500.0,0.00012937,2]
[346781099,1735283448807,-767.8,0.00012937,2]
[346781100,1735283448818,-1285.72,0.00012937,2]
[346781101,1735283448828,-500.0,0.00012937,2]
[346781102,1735283448838,-11037.36,0.00012937,2]
[346781103,1735283448848,-500.0,0.00012937,2]
[346781104,1735283448859,-500.0,0.00012937,2]
[346781105,1735283448869,-500.0,0.00012937,2]
[346781106,1735283448879,-500.0,0.00012937,2]
[346781107,1735283448888,-500.0,0.00012937,2]
[346781108,1735283448898,-500.0,0.00012937,2]
[346781109,1735283448908,-1886.15,0.00012937,2]
[346781110,1735283448917,-558.21,0.00012937,2]
[346781111,1735283448927,-11103.65,0.00012937,2]
[346781112,1735283448936,-500.0,0.00012937,2]
[346781113,1735283448946,-988.04,0.00012937,2]
[346781114,1735283448956,-4566.08,0.00012937,2]
[346781115,1735283448966,-662.06,0.00012937,2]
[346781116,1735283448975,-500.0,0.00012937,2]
[346781117,1735283448984,-572.81,0.00012937,2]
[346781118,1735283448993,-500.0,0.00012937,2]
[346781119,1735283449003,-500.0,0.00012937,2]
[346781120,1735283449011,-500.0,0.00012937,2]
[346781121,1735283449021,-736.63,0.00012937,2]
[346781122,1735283449030,-500.0,0.00012937,2]
[346781123,1735283449039,-500.0,0.00012937,2]
[346781124,1735283449051,-500.0,0.00012937,2]
[346781125,1735283449061,-764.47,0.00012937,2]
[346781126,1735283449070,-500.0,0.00012937,2]
[346781127,1735283449080,-500.0,0.00012937,2]
[346781128,1735283449090,-1863.32,0.00012937,2]
[346781129,1735283449100,-2570.63,0.00012937,2]
[346781130,1735283449110,-500.0,0.00012937,2]
[346781131,1735283449120,-500.0,0.00012937,2]
[346781132,1735283449130,-500.0,0.00012937,2]
[346781133,1735283449140,-500.16,0.00012937,2]
[346781134,1735283449150,-4273.76,0.00012937,2]
[346781135,1735283449160,-500.0,0.00012937,2]
[346781136,1735283449170,-500.0,0.00012937,2]
[346781137,1735283449179,-500.0,0.00012937,2]
[346781138,1735283449189,-345.35,0.00012937,2]
[346781139,1735283449199,-151.0,0.00012938,2]
[346781140,1735283449209,-151.0,0.00012938,2]
[346781141,1735283449218,-151.0,0.00012938,2]
[346781142,1735283449228,-151.0,0.00012938,2]
[346781143,1735283449237,-151.0,0.00012938,2]
[346781144,1735283449247,-151.0,0.00012938,2]
[346781145,1735283449257,-151.0,0.00012938,2]
[346781146,1735283449267,-151.0,0.00012938,2]
[346781147,1735283449276,-151.0,0.00012938,2]
[346781148,1735283449287,-151.0,0.00012938,2]
[346781149,1735283449297,-971.03,0.00012938,2]
[346781150,1735283449308,-677.85,0.00012938,2]
[346781151,1735283449319,-734.61,0.00012938,2]
[346781152,1735283449329,-772.97,0.00012938,2]
[346781153,1735283449339,-971.39,0.00012938,2]
[346781154,1735283449349,-700.39,0.00012938,2]
[346781155,1735283449359,-1119.7,0.00012938,2]